Workbook

Sheet MSU
B1: Mika Koskelainen | E1: 27.5.1968
B2: SUPERPESIS | E2: Runkosarja | I2: Kärkilyönnit (KL), pesänvälit | P2: Ylempi loppusarja | W2: Alempi loppusarja | AD2: Arvo-ottelut | AH2: Mitalit
B3: Vuosi | C3: Sija | D3: Seura | E3: OTT | F3: KUN | G3: LÖI | H3: TOI | I3: KL | J3: 0 > 1 | K3: 1 > 2 | L3: 2 > 3 | M3: 3 > k | N3: KL-% | P3: OTT | Q3: KUN | R3: LÖI | S3: TOI | T3: KL | U3: KL-% | W3: OTT | X3: KUN | Y3: LÖI | Z3: TOI | AA3: KL | AB3: KL-% | AD3: IL | AE3: LL | AF3: hSM | AG3: K | AH3: H | AI3: P
B4: 1989 | C4: 8. | D4: KPL | E4: 1 | F4: 0 | G4: 0 | H4: 0 | I4: 1 | J4: 0 | K4: 0 | L4: 1 | M4: 0 | N4: 100.0 %
B5: 1990 | C5: 12. | D5: KPL | E5: 12 | F5: 0 | G5: 0 | H5: 1 | I5: 6 | J5: 3 | K5: 2 | L5: 1 | M5: 0 | N5: 40.0 % | W5: 1 | X5: 0 | Y5: 0 | Z5: 0 | AA5: 1
B6: 1991 | C6: 14. | D6: KPL | E6: 20 | F6: 0 | G6: 2 | H6: 3 | I6: 38 | J6: 14 | K6: 10 | L6: 12 | M6: 2 | N6: 35.2 %
B7: 1992 | C7: 14. | D7: KPL | F7: ykköspesis
B8: 1993 | C8: 5. | D8: KPL | F8: suomensarja
B9: 1994 | C9: 4. | D9: KPL | F9: suomensarja
B10: 1995 | C10: 2. | D10: KPL | F10: suomensarja
B11: 1996 | C11: 1. | D11: KPL | F11: suomensarja
B12: 1997 | C12: 2. | D12: KPL | F12: ykköspesis | W12: 4 | X12: 0 | Y12: 0 | Z12: 0 | AA12: 6 | AB12: 42.9 %
B13: 1998 | C13: 1. | D13: KPL | F13: ykköspesis
B14: ****
B15: 2009 | C15: 2. | D15: KPL | E15: 1 | F15: 0 | G15: 0 | H15: 0 | I15: 0 | J15: 0 | K15: 0 | L15: 0 | M15: 0 | N15: 0.0 % | AH15: 1
B16: Yhteensä | E16: 34 | F16: 0 | G16: 2 | H16: 4 | I16: 45 | J16: 17 | K16: 12 | L16: 14 | M16: 2 | N16: 36.0 % | P16: 0 | Q16: 0 | R16: 0 | S16: 0 | T16: 0 | U16: 0.0 % | W16: =PRODUCT(E22) -> 5 | X16: =PRODUCT(F22) -> 0 | Y16: 0 | Z16: 0 | AA16: 7 | AB16: =PRODUCT(N22) -> 42.9 % | AD16: 0 | AE16: 0 | AF16: 0 | AG16: 0 | AH16: 0 | AI16: 0
B17: Pesispörssi | D17: 31.7
B19: URA SUPERISSA | E19: OTT | F19: KUN | G19: LÖI | H19: TOI | I19: KL | K19: ka/L | L19: ka/T | M19: ka/KL | N19: KL-% | P19: ENSIMMÄISET RUNKOSARJASSA
B20: Runkosarja | E20: 34 | F20: 0 | G20: 2 | H20: 4 | I20: 45 | K20: 0.06 | L20: 0.12 | M20: 1.32 | N20: 36.0 % | P20: Ottelu | R20: 06.08. 1989 KPL - SoJy 6-2 | Y20: 1. ottelu | AB20: 21 v 2 kk 10 pv
B21: Ylempi loppusarja | P21: Lyöty | R21: 16.06. 1991 VM - KPL 14-4 | Y21: 23. ottelu | AB21: 23 v 0 kk 20 pv
B22: Alempi loppusarja | E22: 5 | F22: 0 | G22: 0 | H22: 0 | I22: 7 | K22: 0.00 | L22: 0.00 | M22: 1.40 | N22: 42.9 % | P22: Tuotu | R22: 01.07. 1990 SoJy - KPL 16-5 | Y22: 7. ottelu | AB22: 22 v 1 kk 4 pv
B23: KAIKKI | E23: 39 | F23: 0 | G23: 2 | H23: 4 | I23: 52 | K23: 0.05 | L23: 0.10 | M23: 1.33 | N23: 36.8 % | P23: Kunnari
B25: Seurat | D25: KPL = Kouvolan Pallonlyöjät (1931)

Sheet MYP, MSS
B1: Mika Koskelainen | E1: 27.5.1968
B2: YKKÖSPESIS | E2: Runkosarja | L2: Runkosarja TOP-10 | Q2: Jatkosarjat | X2: SUOMENSARJA | AA2: Runkosarja | AH2: Runkosarja TOP-10 | AM2: Jatkosarjat
B3: Vuosi | C3: Sija | D3: Seura | E3: OTT | F3: KUN | G3: LÖI | H3: TOI | I3: KL | J3: KL-% | L3: LÖI | M3: TOI | N3: L+T | O3: KL | Q3: OTT | R3: KUN | S3: LÖI | T3: TOI | U3: KL | V3: KL-% | X3: Vuosi | Y3: Sija | Z3: Seura | AA3: OTT | AB3: KUN | AC3: LÖI | AD3: TOI | AE3: KL | AF3: KL-% | AH3: LÖI | AI3: TOI | AJ3: L+T | AK3: KL | AM3: OTT | AN3: KUN | AO3: LÖI | AP3: TOI | AQ3: KL | AR3: KL-%
B4: 1992 | C4: 14. | D4: KPL | E4: 26 | F4: 2 | G4: 8 | H4: 22 | I4: 121
X5: 1993 | Y5: 5. | Z5: KPL
X6: 1994 | Y6: 4. | Z6: KPL
X7: 1995 | Y7: 2. | Z7: KPL
X8: 1996 | Y8: 1. | Z8: KPL
B9: 1997 | C9: 2. | D9: KPL | E9: 25 | F9: 0 | G9: 8 | H9: 9 | I9: 69
B10: 1998 | C10: 1. | D10: KPL | E10: 6 | F10: 0 | G10: 4 | H10: 0 | I10: 13
B11: YHTEENSÄ | E11: =SUM(E4:E10) -> 57 | F11: =SUM(F4:F10) -> 2 | G11: =SUM(G4:G10) -> 20 | H11: =SUM(H4:H10) -> 31 | I11: =SUM(I4:I10) -> 203 | J11: 0.0 % | K11: =SUM(K4:K10) -> 0 | Q11: =SUM(Q4:Q10) -> 0 | R11: =SUM(R4:R10) -> 0 | S11: =SUM(S4:S10) -> 0 | T11: =SUM(T4:T10) -> 0 | U11: =SUM(U4:U10) -> 0 | V11: 0.0 % | W11: =SUM(W4:W10) -> 0 | X11: YHTEENSÄ | AA11: =SUM(AA4:AA10) -> 0 | AB11: =SUM(AB4:AB10) -> 0 | AC11: =SUM(AC4:AC10) -> 0 | AD11: =SUM(AD4:AD10) -> 0 | AE11: =SUM(AE4:AE10) -> 0 | AF11: 0.0 % | AG11: =SUM(AG4:AG10) -> 0 | AM11: =SUM(AM4:AM10) -> 0 | AN11: =SUM(AN4:AN10) -> 0 | AO11: =SUM(AO4:AO10) -> 0 | AP11: =SUM(AP4:AP10) -> 0 | AQ11: =SUM(AQ4:AQ10) -> 0 | AR11: 0.0 % | AS11: =SUM(AS4:AS10) -> 0
B13: KAIKKI OTTELUT | E13: OTT | F13: KUN | G13: LÖI | H13: TOI | I13: KL | J13: KL-% | L13: ka/L | M13: ka/T | N13: ka/l+t | O13: ka/kl | R13: Seurat | T13: KPL = Kouvolan Pallonlyöjät (1931)
B14: SUPERPESIS | E14: 39 | F14: 0 | G14: 2 | H14: 4 | I14: 52 | J14: 36.8 % | K14: =PRODUCT(I14/J14) -> 141.3043478 | L14: =PRODUCT((F14+G14)/E14) -> 0.05 | M14: =PRODUCT(H14/E14) -> 0.10 | N14: =PRODUCT((F14+G14+H14)/E14) -> 0.15 | O14: =PRODUCT(I14/E14) -> 1.33
B15: YKKÖSPESIS | E15: =PRODUCT(E11+Q11) -> 57 | F15: =PRODUCT(F11+R11) -> 2 | G15: =PRODUCT(G11+S11) -> 20 | H15: =PRODUCT(H11+T11) -> 31 | I15: =PRODUCT(I11+U11) -> 203 | J15: 0.0 % | K15: =PRODUCT(K11+W11) -> 0 | L15: =PRODUCT((F15+G15)/E15) -> 0.39 | M15: =PRODUCT(H15/E15) -> 0.54 | N15: =PRODUCT((F15+G15+H15)/E15) -> 0.93 | O15: =PRODUCT(I15/E15) -> 3.56
B16: SUOMENSARJA | E16: =PRODUCT(AA11+AM11) -> 0 | F16: =PRODUCT(AB11+AN11) -> 0 | G16: =PRODUCT(AC11+AO11) -> 0 | H16: =PRODUCT(AD11+AP11) -> 0 | I16: =PRODUCT(AE11+AQ11) -> 0 | J16: 0.0 % | K16: =PRODUCT(AG11+AS11) -> 0 | L16: 0.00 | M16: 0.00 | N16: 0.00 | O16: 0.00
B17: YHTEENSÄ | E17: =SUM(E14:E16) -> 96 | F17: =SUM(F14:F16) -> 2 | G17: 22 | H17: 35 | I17: 255 | J17: 0.0 % | K17: =SUM(K14:K16) -> 141.3043478 | L17: =PRODUCT((F17+G17)/E17) -> 0.25 | M17: =PRODUCT(H17/E17) -> 0.36 | N17: =PRODUCT((F17+G17+H17)/E17) -> 0.61 | O17: =PRODUCT(I17/E17) -> 2.66

Sheet Pelinjohtaja
B1: PELINJOHTAJAKORTTI
B2: Mika Koskelainen | E2: 27.5.1968
B3: MSU | C3: Runkosarja | J3: Ylempi loppusarja | N3: Alempi loppusarja | R3: Mitalit | U3: Huomautuksia
B4: Vuosi | C4: Seura | D4: Sija | E4: O | F4: V | G4: H | H4: Voitto-% | J4: O | K4: V | L4: H | M4: Voitto-% | N4: O | O4: V | P4: H | Q4: Voitto-% | R4: 1 | S4: 2 | T4: 3
B5: 2008 | C5: KPL | D5: 4. | E5: 1 | F5: 1 | G5: 0 | H5: =PRODUCT(F5/E5) -> 100.0 %
B6: Yhteensä | E6: =SUM(E5:E5) -> 1 | F6: =SUM(F5:F5) -> 1 | G6: =SUM(G5:G5) -> 0 | H6: =PRODUCT(F6/E6) -> 100.0 % | J6: =SUM(J5:J5) -> 0 | K6: =SUM(K5:K5) -> 0 | L6: =SUM(L5:L5) -> 0 | M6: 0.0 % | N6: =SUM(N5:N5) -> 0 | O6: =SUM(O5:O5) -> 0 | P6: =SUM(P5:P5) -> 0 | Q6: 0.0 % | R6: =SUM(R5:R5) -> 0 | S6: =SUM(S5:S5) -> 0 | T6: =SUM(T5:T5) -> 0
B8: URA SUPERISSA | E8: O | F8: V | G8: H | H8: Voitto-% | J8: PLAY OFF | M8: SARJAT | N8: O | O8: V | P8: H | Q8: Voitto-%
B9: Runkosarja | E9: =PRODUCT(E6) -> 1 | F9: =PRODUCT(F6) -> 1 | G9: =PRODUCT(G6) -> 0 | H9: =PRODUCT(F9/E9) -> 100.0 % | J9: Puolivälierät
B10: Ylempi loppusarja | J10: Välierät
B11: Alempi loppusarja | J11: Finaalit
B12: KAIKKI | E12: =SUM(E9:E11) -> 1 | F12: =SUM(F9:F11) -> 1 | G12: =SUM(G9:G11) -> 0 | H12: =PRODUCT(F12/E12) -> 100.0 % | J12: KAIKKI
B14: Seurat: | C14: KPL = Kouvolan Pallonlyöjät (1931)
